Cogmind - Beta 11.1 @@@ ROGUE MODE // 2022.07.13 @ 22:00:02 Player: tkc Result: Destroyed by Y-45 Defender with Beam Rifle Performance ------------- Evolutions (2) 1000 Regions Visited (5) 1000 Robots Destroyed (133) 665 Value Destroyed (4385) 4385 Prototype IDs (7) 140 Alien Tech Used (0) 0 Bonus (1416) 1416 TOTAL SCORE: 8606 Bonus ------- High Alert Combat Kills 716 Entered Garrisons 200 Used RIF Installer 500 Cogmind --------- Core Integrity 0/550 Matter 237/300 Energy 280/280 System Corruption 0% Temperature Cool (9) Movement Rolling (175) Ox5 Location -8/Materials Parts ------- > --- POWER (1) -------- Cooled Ion Engine > --- PROPULSION (3) --- Armored Treads Armored Huge Wheel > --- UTILITY (5) ------ Coolant Injector Large Storage Unit High-capacity Storage Unit Huge Storage Unit Improved Signal Interpreter > --- WEAPON (2) ------- Improved EM Shotgun Rocket Launcher > --- INVENTORY (25) --- Light Nuclear Core Light Nuclear Core Gravmag System Gravmag System Gravmag System Gravmag System High-capacity Matter Pod (200) Advanced Targeting Computer Relay Coupler [NC] (26) Relay Coupler [Grunt] (31) Relay Coupler [Grunt] (28) Relay Coupler [Duelist] (26) Relay Coupler [Sentry] (23) Heavy Particle Cannon Enhanced Autogun Gauss Rifle Mini Grenade Launcher Missile Launcher Improved Datajack Axe Peak State ------------ > --- POWER ------------ Heavy Ion Engine > --- PROPULSION ------- Armored Treads Armored Huge Wheel > --- UTILITY ---------- Large Storage Unit High-capacity Storage Unit Huge Storage Unit Improved Signal Interpreter Hacking Suite > --- WEAPON ----------- Heavy EM Shotgun Heavy EM Shotgun > --- INVENTORY -------- Cooled Ion Engine Cooled Ion Engine Cooled Ion Engine Light Nuclear Core Armored Treads Armored Treads Armored Huge Wheel Armored Huge Wheel Gravmag System Gravmag System Gravmag System Gravmag System High-capacity Matter Pod Heavy EM Shotgun Arc Projector Heavy Particle Cannon Minigun Gauss Rifle Grenade Launcher Mini Grenade Launcher Missile Launcher Improved Datajack Mace [Rating: 39] Favorites ----------- Power Cooled Ion Engine Engine Cooled Ion Engine Propulsion Armored Treads Treads Armored Treads Wheel Armored Huge Wheel Utility High-capacity Storage Unit Device Improved Heat Sink Storage High-capacity Storage Unit Processor Improved Signal Interpreter Hackware Hacking Suite Protection Light Armor Plating Weapon Heavy EM Shotgun Energy Gun Heavy EM Shotgun Energy Cannon Advanced Beam Cannon Ballistic Gun Enhanced Autogun Ballistic Cannon Light Cannon Launcher Grenade Launcher Impact Weapon Mace Slashing Weapon Axe Special Melee Weapon Improved Datajack Build | -11 -10 -9 -8 -8 -8 ------- Run | Scr Mat Mat Mat Gar Mat Slots Evolved 4 | . . 2 2 . . Power . | . . . . . . Propulsion 1 | . . . 1 . . Utility 3 | . . 2 1 . . Weapon . | . . . . . . Parts Attached 127 | 9 16 25 48 16 13 Power 12 | 1 1 3 5 1 1 Engine 12 | 1 1 3 5 1 1 Core . | . . . . . . Reactor . | . . . . . . Propulsion 29 | 3 4 7 11 2 2 Treads 15 | 2 1 2 8 1 1 Leg . | . . . . . . Wheel 14 | 1 3 5 3 1 1 Hover . | . . . . . . Flight . | . . . . . . Utility 29 | 3 6 2 13 3 2 Device 8 | 1 1 1 1 3 1 Storage 11 | 2 5 . 3 . 1 Processor 2 | . . 1 1 . . Hackware 1 | . . . 1 . . Protection 7 | . . . 7 . . Artifact . | . . . . . . Weapon 57 | 2 5 13 19 10 8 Energy Gun 20 | . 2 4 6 4 4 Energy Cannon 2 | . . 1 1 . . Ballistic Gun 14 | 2 1 3 2 3 3 Ballistic Cannon 2 | . 1 1 . . . Launcher 7 | . 1 1 2 2 1 Special Weapon . | . . . . . . Impact Weapon 10 | . . 3 7 . . Slashing Weapon 1 | . . . . 1 . Piercing Weapon . | . . . . . . Special Melee Weapon 1 | . . . 1 . . Unidentified Prototypes 7 | . . 2 5 . . Parts Lost 30 | . 4 10 5 4 7 Power 5 | . 1 2 1 . 1 Propulsion 11 | . 2 5 1 1 2 Utility 5 | . . . 3 1 1 Weapon 9 | . 1 3 . 2 3 Highest Loss Streak 3 | . 2 3 2 2 2 To Critical Strikes . | . . . . . . Average Slot Usage (%) 92 | . 99 95 93 88 84 Engine 9 | . 14 9 8 9 8 Treads 10 | . 12 5 13 8 9 Wheel 10 | . 15 14 8 9 8 Device 5 | . . 11 3 7 4 Storage 25 | . 27 22 22 27 27 Processor 7 | . . 11 8 9 9 Hackware 1 | . . . 5 . . Protection 1 | . . . 4 . . Energy Gun 7 | . 12 4 8 4 5 Ballistic Gun 8 | . 11 5 3 10 10 Ballistic Cannon 1 | . 4 6 . . . Impact Weapon 1 | . . 2 4 . . Naked Turns . | . . . . . . Heaviest Build 159 | 16 58 61 159 158 156 Greatest Support 46 | 40 26 46 43 28 28 Greatest Overweight (x) 51 | . 5 6 5 7 51 Average Overweight (x) 4 | . 3 3 4 5 5 Largest Inventory Capacity 25 | 8 20 20 25 25 25 Average Capacity 22 | 7 18 20 22 25 25 Most Carried 25 | 8 20 20 25 25 25 Average Carried 21 | 5 14 19 22 24 24 Final Capacity 25 | 8 20 20 25 25 25 Final Carried 25 | 8 19 19 25 25 20 Class Distribution -------------------- 69% | Mutant 19% | Bothacker-Mutant 11% | Scavenger-Mutant Dominant Class ---------------- Mutant | -10/Materials Scavenger-Mutant | -9/Materials Mutant | -8/Materials Mutant | -8/Garrison Bothacker-Mutant | -8/Materials Resources | -11 -10 -9 -8 -8 -8 ----------- Run | Scr Mat Mat Mat Gar Mat Matter Collected 2964 | 398 418 319 945 521 363 Remotely . | . . . . . . Salvage Created 5209 | 191 808 563 1271 974 1402 Parts 299 | 15 49 37 75 45 78 Haulers Intercepted 7 | . 2 1 1 . 3 Recyclers Shooed 6 | . 3 1 2 . . Parts Field Recycled . | . . . . . . Retrieved Matter . | . . . . . . Parts Self-Destructed . | . . . . . . Prevented . | . . . . . . Kills | -11 -10 -9 -8 -8 -8 ------- Run | Scr Mat Mat Mat Gar Mat Combat Hostiles Destroyed 90 | . 15 16 20 22 17 Guns 50 | . 9 4 10 14 13 Cannons 12 | . 3 8 1 . . AOE 26 | . 3 4 8 7 4 Classes Destroyed 13 | 3 6 1 1 1 1 Worker 8 | 2 2 . 2 . 2 Builder 3 | . 1 . 1 . 1 Tunneler 3 | 3 . . . . . Hauler 7 | . 2 1 1 . 3 Recycler 12 | 1 2 1 4 . 4 Operator 2 | . 2 . . . . Watcher 8 | . 2 2 3 . 1 Swarmer 17 | . 3 4 7 . 3 Cutter 1 | . . . . 1 . Grunt 45 | . 12 7 5 15 6 Brawler 1 | . . . . . 1 Sentry 21 | . . 5 6 5 5 Hunter 5 | . . . 2 1 2 Best Kill Streak 8 | 2 5 4 7 8 4 Combat Bots Only 8 | . 3 4 4 8 3 Max Kills in Single Turn 4 | 1 2 2 4 2 2 Gunslinging 1 | . . . . . 1 Exploded 2 | . 2 2 2 1 1 Melee . | . . . . . . Uniques/NPCs Destroyed . | . . . . . . Combat | -11 -10 -9 -8 -8 -8 -------- Run | Scr Mat Mat Mat Gar Mat Damage Taken 5787 | . 767 1306 1112 1345 1257 Core 1058 | . 149 354 133 248 174 Absorbed by Shields 67 | . . . . 67 . Core Remaining (%) 50 | 100 40 11 . . . Volleys Fired 358 | 19 74 59 76 65 65 Largest 2 | 2 2 2 2 2 2 Hottest 140 | 40 85 105 140 105 83 Shots Fired 617 | 32 148 103 115 102 117 Gun 501 | 32 117 51 97 90 114 Cannon 91 | . 29 50 12 . . Launcher 25 | . 2 2 6 12 3 Special . | . . . . . . Kinetic 370 | 32 89 85 34 57 73 Thermal 64 | . 29 16 19 . . Explosive 25 | . 2 2 6 12 3 Electromagnetic 158 | . 28 . 56 33 41 Robot Hit Streak 23 | 4 17 23 17 17 16 Robot Miss Streak 4 | 2 3 2 4 2 3 Penetration Max 1 | . . . . . 1 Secondary Targets 3 | . . . 1 1 1 Max Gunslinging Chain 1 | . . . 1 1 1 Shots Hit Robots 438 | 17 90 74 91 72 94 Core Hits 227 | 7 38 30 61 44 47 Critical Kills 1 | . . . . . 1 Critical Parts Destroyed 3 | 1 . . 1 . 1 Critical Strikes 14 | 1 3 7 1 . 2 Burn 3 | . 1 2 . . . Destroy 4 | 1 . . 1 . 2 Blast 6 | . 1 5 . . . Corrupt 1 | . 1 . . . . Melee Attacks 27 | . . 8 15 4 . Impact 23 | . . 8 15 . . Slashing 4 | . . . . 4 . Piercing . | . . . . . . Sneak Attacks . | . . . . . . Combat Hostiles . | . . . . . . Follow-up Attacks . | . . . . . . Damage Inflicted 9440 | 172 1594 1335 2323 1995 2021 Guns 5947 | 172 864 455 1466 1243 1747 Cannons 1257 | . 358 674 225 . . Explosions 2236 | . 372 206 632 752 274 Melee . | . . . . . . Ramming . | . . . . . . Kinetic 3697 | 172 653 997 246 674 955 Thermal 1445 | . 526 132 472 180 135 Explosive 1481 | . 71 206 493 572 139 Electromagnetic 2817 | . 344 . 1112 569 792 Impact . | . . . . . . Slashing . | . . . . . . Piercing . | . . . . . . Highest Corruption . | . . . . . . Average Corruption . | . . . . . . Corruption Purged . | . . . . . . Corruption Blocked . | . . . . . . Overload Shots . | . . . . . . Overflow Damage 111 | . 5 4 68 34 . Projectiles 5 | . 1 1 3 . . Explosions 106 | . 4 3 65 34 . Melee . | . . . . . . Knockbacks 18 | . 6 12 . . . Impact . | . . . . . . Kinetic 17 | . 5 12 . . . Secondary 1 | . 1 . . . . Self-Inflicted Damage 515 | . 157 37 141 105 75 Shots 13 | . 3 1 4 3 2 Rammed . | . . . . . . Targets Rammed . | . . . . . . Kicked . | . . . . . . Crushed . | . . . . . . Highest Temperature 390 | . 285 67 390 52 25 Average Temperature 54 | . 54 16 88 24 6 Received Heat Transfer 2266 | . 291 618 315 700 342 Effects 3 | . 2 . 1 . . Interference 2 | . 2 . . . . Short Circuit 1 | . . . 1 . . Siege Activations . | . . . . . . Robots Corrupted 2 | . . . 1 1 . Combat Hostiles 2 | . . . 1 1 . Parts Fried 13 | . 2 . 9 . 2 Impact Corruptions . | . . . . . . Robots Melted . | . . . . . . Combat Hostiles . | . . . . . . Parts Melted 4 | . . 3 1 . . Heat Transferred 2701 | . 1103 506 692 250 150 Parts Sabotaged . | . . . . . . Parts Stolen . | . . . . . . Parts Stripped . | . . . . . . Power Chain Reactions 13 | . 5 . 3 2 3 Missiles Intercepted . | . . . . . . Alert | -11 -10 -9 -8 -8 -8 ------- Run | Scr Mat Mat Mat Gar Mat Peak Influence 1164 | 30 564 528 434 1164 867 Initial 567 | . 19 190 109 241 567 Average 455 | 12 314 353 174 814 707 Maximum Alert Level 4 | . 2 2 2 4 3 Low Security (%) 28 | 100 23 6 73 . . Level 1 26 | . 54 58 25 11 . Level 2 22 | . 22 35 . 26 47 Level 3 16 | . . . . 33 52 Level 4 6 | . . . . 28 . Level 5 . | . . . . . . High Security . | . . . . . . Max Security . | . . . . . . Squads Dispatched 12 | . 5 3 3 . 1 Investigation 4 | . 2 1 1 . . Extermination . | . . . . . . Reinforcement 7 | . 3 2 1 . 1 Assault . | . . . . . . Garrison 1 | . . . 1 . . Intercept . | . . . . . . Searches Triggered . | . . . . . . Construction Impeded . | . . . . . . Haulers Reinforced . | . . . . . . Active Scanning Responses . | . . . . . . Cargo Convoy Interrupts . | . . . . . . Stealth | -11 -10 -9 -8 -8 -8 --------- Run | Scr Mat Mat Mat Gar Mat Distress Signals 9 | . 3 3 3 . . Communications Jammed . | . . . . . . Distress Signals . | . . . . . . Times Spotted 155 | . 38 29 36 23 29 Peak Tracking Total 8 | . 5 5 7 8 4 Tactical Retreats 8 | . 4 1 1 . 2 Traps | -11 -10 -9 -8 -8 -8 ------- Run | Scr Mat Mat Mat Gar Mat Traps Triggered 16 | . 1 . 5 10 . Indirectly . | . . . . . . Trap Hack Attempts . | . . . . . . Triggered . | . . . . . . Disarmed . | . . . . . . Reprogrammed . | . . . . . . Reused . | . . . . . . Traps Extracted . | . . . . . . Installed . | . . . . . . Triggered 1 | . 1 . . . . Machines | -11 -10 -9 -8 -8 -8 ---------- Run | Scr Mat Mat Mat Gar Mat Machines Disabled 12 | . 3 1 3 3 2 Max in Single Turn 1 | . 1 1 1 1 1 Garrison Relay 3 | . . . . 3 . Machines Sabotaged . | . . . . . . Garrisons Compromised . | . . . . . . Overloaded Fab Kills . | . . . . . . Hacking | -11 -10 -9 -8 -8 -8 --------- Run | Scr Mat Mat Mat Gar Mat Machines Accessed 21 | . 4 7 8 . 2 Terminals 17 | . 4 7 5 . 1 Fabricators . | . . . . . . Repair Stations . | . . . . . . Recycling Units 1 | . . . 1 . . Scanalyzers 2 | . . . 1 . 1 Garrison Access 1 | . . . 1 . . Total Hacks 63 | . 13 24 21 . 5 Successful 43 | . 10 18 12 . 3 Failed 20 | . 3 6 9 . 2 Catastrophic 4 | . . 2 2 . . Database Lockouts . | . . . . . . Manual 39 | . 9 15 12 . 3 Terminals 55 | . 13 24 15 . 3 Fabricators . | . . . . . . Repair Stations . | . . . . . . Recycling Units 2 | . . . 2 . . Scanalyzers 5 | . . . 3 . 2 Garrison Access 1 | . . . 1 . . Terminal Hacks 24 | . 6 14 4 . . Record 5 | . 1 3 1 . . Robot Analysis 3 | . 1 1 1 . . Level Access Points 1 | . . 1 . . . Branch Access Points 1 | . . 1 . . . Terminal Index 3 | . 1 1 1 . . Alert Level 3 | . 1 1 1 . . Unreport Threat 1 | . . 1 . . . Recall Reinforcements 1 | . 1 . . . . Hauler Manifests 1 | . . 1 . . . Registered Components 1 | . . 1 . . . Registered Prototypes 1 | . . 1 . . . Zone Layout 3 | . 1 2 . . . Fabricator Hacks . | . . . . . . Repair Station Hacks . | . . . . . . Recycling Unit Hacks 2 | . . . 2 . . Process 1 | . . . 1 . . Report Inventory 1 | . . . 1 . . Scanalyzer 4 | . . . 2 . 2 Insert Component 2 | . . . 1 . 1 Analyze 2 | . . . 1 . 1 Garrison Access Hacks 1 | . . . 1 . . Unlock Access 1 | . . . 1 . . Unauthorized Hacks 12 | . 4 4 3 . 1 Terminals 12 | . 4 4 3 . 1 Assimilate 1 | . 1 . . . . Botnet 8 | . 1 3 3 . 1 Disrupt 2 | . 1 1 . . . Operators 1 | . 1 . . . . Fabricators . | . . . . . . Repair Stations . | . . . . . . Recycling Units . | . . . . . . Scanalyzers . | . . . . . . Garrison Access . | . . . . . . Data Cores Recovered . | . . . . . . Used . | . . . . . . Hacking Detections 19 | . 4 7 7 . 1 Full Trace Events 3 | . 1 1 1 . . Feedback Events . | . . . . . . Feedback Blocked . | . . . . . . Robot Schematics Acquired . | . . . . . . Robots Built . | . . . . . . Authchips . | . . . . . . Time . | . . . . . . Total Robot Build Rating . | . . . . . . Part Schematics Acquired . | . . . . . . Parts Built . | . . . . . . Authchips . | . . . . . . Time . | . . . . . . Total Part Build Rating . | . . . . . . Parts Repaired . | . . . . . . Time . | . . . . . . Parts Recycled . | . . . . . . Recycled Matter . | . . . . . . Retrieved Matter . | . . . . . . Retrieved Components . | . . . . . . Parts Scanalyzed 2 | . . . 1 . 1 Part Schematics Acquired . | . . . . . . Parts Damaged . | . . . . . . Bothacking | -11 -10 -9 -8 -8 -8 ------------ Run | Scr Mat Mat Mat Gar Mat Used RIF Installer 1 | . . . . 1 . Robots Hacked . | . . . . . . Non-combat . | . . . . . . Combat . | . . . . . . Robot Hacks Applied . | . . . . . . Relay Couplers Released 12 | . . . . 12 . Machine Destruction 12 | . . . . 12 . Fabnet Peak Effective % . | . . . . . . Robots Rewired . | . . . . . . Allies Hacked . | . . . . . . Hacks Repelled . | . . . . . . Allies | -11 -10 -9 -8 -8 -8 -------- Run | Scr Mat Mat Mat Gar Mat Total Allies . | . . . . . . Largest Group . | . . . . . . Highest-Rated Group . | . . . . . . Highest-Rated Ally . | . . . . . . Total Orders . | . . . . . . Ally Attacks . | . . . . . . Total Damage . | . . . . . . Kills . | . . . . . . Allies Corrupted . | . . . . . . Allies Melted . | . . . . . . Intel | -11 -10 -9 -8 -8 -8 ------- Run | Scr Mat Mat Mat Gar Mat Robot Analysis Total 3 | . 1 1 1 . . Derelict Logs Recovered . | . . . . . . Drone Launches . | . . . . . . Drone Recoveries . | . . . . . . Exploration | -11 -10 -9 -8 -8 -8 ------------- Run | Scr Mat Mat Mat Gar Mat Turns Passed 7215 | 171 1206 866 2065 1666 1241 Spaces Moved 3163 | 89 579 364 900 736 495 Core 4 | 2 . . . . 2 Treads 125 | 20 9 23 51 22 . Legs . | . . . . . . Wheels 3034 | 67 570 341 849 714 493 Hover . | . . . . . . Flight . | . . . . . . Fastest Speed 50 | 50 100 110 130 175 175 Average Speed 169 | 112 143 147 172 191 184 Slowest Speed 2600 | 160 240 320 320 730 2600 Overloaded Moves . | . . . . . . Propulsion Burnouts . | . . . . . . Robots Hopped . | . . . . . . Cave-ins Triggered . | . . . . . . Exploration Rate (%) 50 | 6 75 37 60 81 44 Regions Visited 5 Branch Regions . Pre-discovered Areas . | . . . . . . Known Exits Taken 2 | . . 1 1 . . Unknown Exits Taken 2 | 1 1 . . . . Scrap Searched . | . . . . . . Spaces Dug 19 | . . 6 12 1 . Terrain Destroyed 180 | . 39 14 81 26 20 Melee 19 | . . 6 12 1 . Projectile 3 | . . . 3 . . AOE 158 | . 39 8 66 25 20 Terrain Rammed . | . . . . . . Walls Destroyed . | . . . . . . Machines Disabled . | . . . . . . Actions | -11 -10 -9 -8 -8 -8 --------- Run | Scr Mat Mat Mat Gar Mat Total 4416 | 127 810 579 1281 900 719 Wait 523 | . 119 90 174 5 135 Move 3159 | 88 578 363 900 735 495 Hop . | . . . . . . Pick Up 93 | 9 18 21 32 8 5 Fast Attach 30 | 7 . 2 16 2 3 Attach 36 | 1 4 13 8 5 5 Detach 4 | 1 . . 2 1 . Swap 61 | 1 12 10 24 9 5 Drop 65 | 1 5 13 34 6 6 Fire 358 | 19 74 59 76 65 65 Melee 27 | . . 8 15 4 . Ram . | . . . . . . Kick . | . . . . . . Crush . | . . . . . . Escape Stasis 60 | . . . . 60 . Rewire . | . . . . . . Trap . | . . . . . . Miscellaneous . | . . . . . . Route ------- -11/Scrapyard -10/Materials (discovered 3 exits: *Mat x3) -9/Materials (discovered 5 exits: *Mat x3 / Min x2) -8/Materials (discovered 2 exits: *Fac / Gar) -8/Garrison (discovered 3 exits: *Mat x3) -8/Materials History --------- Turn | Location | Event 9 | -11/Scrapyard | Discovered new exit (range 14) 172 | -11/Scrapyard | Entered Materials 315 | -10/Materials | Build established: Mutant 430 | -10/Materials | Discovered new exit (range 16) 912 | -10/Materials | Discovered new exit (range 8) 1209 | -10/Materials | Core integrity fell below 50% 1318 | -10/Materials | Discovered new exit (range 7) 1378 | -10/Materials | Entered another Materials area 1378 | -9/Materials | Evolved 2 slots: Utility x2 1687 | -9/Materials | Build established: Scavenger-Mutant 1782 | -9/Materials | Lost 3 parts (1p2n) 1819 | -9/Materials | Discovered new exit (range 13) 1833 | -9/Materials | Core integrity fell below 50% 2023 | -9/Materials | Identified exit to Mines 2023 | -9/Materials | Identified exit to Materials 2125 | -9/Materials | Core integrity fell below 20% 2244 | -9/Materials | Entered another Materials area 2244 | -8/Materials | Evolved 2 slots: Propulsion x1, Utility x1 3072 | -8/Materials | Discovered new exit (range 4) 3076 | -8/Materials | Identified exit to Factory 3157 | -8/Materials | Build established: Mutant 4222 | -8/Materials | Garrison activated, responded to threat 4309 | -8/Materials | Identified exit to Garrison 4309 | -8/Materials | Entered Garrison 4410 | -8/Garrison | Triggered checkpoint 4426 | -8/Garrison | Triggered checkpoint 4676 | -8/Garrison | Triggered checkpoint 4687 | -8/Garrison | Garrison Relay disabled 4797 | -8/Garrison | Core integrity fell below 50% 4847 | -8/Garrison | Destroyed 8 combat bots 4926 | -8/Garrison | Triggered checkpoint 4972 | -8/Garrison | Garrison Relay disabled 5039 | -8/Garrison | Discovered new exit (range 15) 5082 | -8/Garrison | Identified exit to Materials 5282 | -8/Garrison | Triggered checkpoint 5338 | -8/Garrison | Triggered checkpoint 5372 | -8/Garrison | Garrison Relay disabled 5427 | -8/Garrison | Discovered exit to Materials (range 10) 5610 | -8/Garrison | Triggered checkpoint 5656 | -8/Garrison | Discovered exit to Materials (range 15) 5809 | -8/Garrison | Installed Relay Interface Framework 5975 | -8/Garrison | Entered Materials 6106 | -8/Materials | Build established: Bothacker-Mutant 6599 | -8/Materials | Core integrity fell below 20% 7216 | -8/Materials | Destroyed by Y-45 Defender with Beam Rifle Last Messages --------------- 07106_ R-06 Scavenger inserts Lgt. Treads into recycling unit. 07121_ Chain reaction triggered in Lgt. Nuclear Core. 07121_ G-47 Trooper destroyed. 07127_ B-36 Bruiser destroyed. 07133_ The unstable cave ceiling collapses. 07136_ R-06 Scavenger inserts Gauss Rifle into recycling unit. 07137_ Recycling unit begins recycling process. 07138_ Recycling unit begins matter transfer process. 07138_ U-05 Engineer lays Concrete. 07139_ R-06 Scavenger inserts Corrupted Assault Rifle into recycling unit. 07140_ U-05 Engineer lays Concrete. 07142_ R-06 Scavenger inserts Carbon-fiber Leg into recycling unit. 07143_ Recycling unit begins recycling process. 07143_ U-05 Engineer lays Concrete. 07145_ R-06 Scavenger inserts Gauss Rifle into recycling unit. 07147_ U-05 Engineer lays Concrete. 07156_ R-06 Scavenger collects Rnf. Ion Engine. 07161_ U-05 Engineer builds a Wall. 07180_ Acquired Coolant Injector. 07213_ Critical hit (Burn: +37). Map ----- +----------------------------------------------------+ | ????????????????????????????????????????????? | | ????????????????????????????????????????????? | | ????????????????????????????????????????????? | | ????????????????????????????????????????????? | | ??????????????????########??????????????????? | | ??????????????????#!!//]]#??????????????????? | | ??????????????????#! //]]#??????????????????? | | ??????????????????# #??????????????????? | | ??????????????????#### ########??????? ??? | | ?????????????????????# #??????? ??? | | ?????????????????????# #?????? #?? | | ?????????????????????# #?????? ??? | | ?????????????????????## ##### #?????? #?? | | ??????????????????????# #???# #?????? ?? | | ???????????????########+#???# #?????? ?? | | ???????????????# #???# #######+### | | ???????????????# """ #???# ^ | | ???????????????# """ #???# | | ???????????????# """ #???# ^ ^ ^ | | ???????????????# #???# ^ | | ???????????????# """ #???# """"" | | ???????????????# """ !#???# """"" | | ???????????????# """ #??## "Y" """"" | | ???????????????# #??# """ | | ???????????????#####/####### | | ?????????????????# @ # | | ???????????? sss # ### | | ??????????# Y # ## | | ??????????# ##### # ! *% ####/] | | ?????????????????######! %= #?#/ "T" | | ??????????????????????# ##/! """ | | ??????????????????????# ### | | ??????????????????????# ] # ##?# | | ??????????????????????# # #??######### | | ??????????????????????# # #??????????# | | ??????????????????????# # #??????????# | | ??????????????????????# # #??????????#[ | | ??????????????????????####### #???########= | | ????????????????## #######??# #???#**!!!!## | | ????????????????# ] ?# #???#**!!!!#? | | ????????????????# ?# #???# #? | | ????????????????# #% ##### ## | | ????????????????# ]!] # | | ????????????????# ]! %+% | | ????????????????# !] !# | | ????????????????# #!* | | ????????????????###########?#%!= | | ????????????????????????????##+######## | | ?????????????????????????????? ??????# ##### | | ?????????????????????????????? ??????# #???? | +----------------------------------------------------+ Best States ------------- Heat Dissipation 45 Coolant Potential 65 Energy Generation 14 Energy Capacity 280 Matter Stores 300 Matter Capacity 300 Sight Range 16 Terrain Scan Range 16 Terrain Scan Density 85 Armor Coverage 225 Evasion (%) 40 Recoil Reduction 2 Offensive Hacking 10 Item Schematics ----------------- None Robot Schematics ------------------ None Fabricated ------------ Nothing Alien Tech Used ----------------- None Achievements -------------- Quantum Hacking Challenges ------------ None Game ------ Seed RefineryDeliveryCutter Manual? 0 Play Time 02:25:39 Cumulative 56.7 hours Start 2022.07.13 @ 18:35:25 End 2022.07.13 @ 22:00:02 Sessions 3 Manual Loads 0 Difficulty Rogue Special Mode None Game No. 37 Rogue 36 Adventurer 0 Explorer 1 Win Type - Total 0 Types 0/0/0/0/0/0/0/0/0 Lore% 18 Gallery% 28 Achievement% 22 Wizard Run 0 Options --------- ASCII 0 Keyboard 0 Movement Mouse Keybinds 0 Fullscreen 1 Font 36/Terminus Map View 76x50 Tactical HUD 1 Map Filters NONE Filters NONE Steam 1 RUN: 432bc783-685f-4e55-8855-4ca57094cbe5